[Event "*** Titled Tuesday Blitz"]
[Site "Chess.com"]
[Date "2020.04.28"]
[Round "9"]
[White "Borsuk_Konstantin"]
[Black "kuli4ik"]
[Result "0-1"]
[WhiteElo "2575"]
[BlackElo "2717"]
[TimeControl "180+1"]
[EndTime "11:45:31 PDT"]
[Termination "kuli4ik won by resignation"]

1. d4 {[%clk 0:03:00.9]} 1... d5 {[%clk 0:02:59.3]} 2. c4 {[%clk 0:03:00.8]}
2... c6 {[%clk 0:02:59.8]} 3. Nc3 {[%clk 0:03:00.7]} 3... dxc4 {[%clk
0:02:59.7]} 4. e3 {[%clk 0:03:00.6]} 4... b5 {[%clk 0:02:59.6]} 5. a4 {[%clk
0:02:59.7]} 5... b4 {[%clk 0:02:59.8]} 6. Ne4 {[%clk 0:02:59.7]} 6... Qd5 {[%clk
0:02:58.9]} 7. Ng3 {[%clk 0:02:57]} 7... Nf6 {[%clk 0:02:59.1]} 8. Nf3 {[%clk
0:02:51.6]} 8... e6 {[%clk 0:02:59.4]} 9. Be2 {[%clk 0:02:50.7]} 9... Be7 {[%clk
0:02:59.3]} 10. O-O {[%clk 0:02:51.1]} 10... O-O {[%clk 0:02:58.8]} 11. Qc2
{[%clk 0:02:51]} 11... Ba6 {[%clk 0:02:58.6]} 12. e4 {[%clk 0:02:50.8]} 12...
Qa5 {[%clk 0:02:51.7]} 13. Bxc4 {[%clk 0:02:47.4]} 13... c5 {[%clk 0:02:47.9]}
14. d5 {[%clk 0:02:36.8]} 14... exd5 {[%clk 0:02:44.6]} 15. exd5 {[%clk
0:02:34]} 15... Bxc4 {[%clk 0:02:44.1]} 16. Qxc4 {[%clk 0:02:33]} 16... Qa6
{[%clk 0:02:45]} 17. b3 {[%clk 0:02:21.3]} 17... Rd8 {[%clk 0:02:42.1]} 18. Rd1
{[%clk 0:02:05.9]} 18... Qxc4 {[%clk 0:02:36.9]} 19. bxc4 {[%clk 0:02:04.9]}
19... Nbd7 {[%clk 0:02:37.4]} 20. a5 {[%clk 0:01:57]} 20... Ne8 {[%clk 0:02:37]}
21. a6 {[%clk 0:01:36.2]} 21... Nd6 {[%clk 0:02:34.4]} 22. Bf4 {[%clk
0:01:18.8]} 22... Nb6 {[%clk 0:02:31.3]} 23. Bxd6 {[%clk 0:01:12.9]} 23... Bxd6
{[%clk 0:02:31.3]} 24. Rac1 {[%clk 0:01:09.9]} 24... g6 {[%clk 0:02:27.9]} 25.
Nd2 {[%clk 0:01:08.7]} 25... f5 {[%clk 0:02:25.2]} 26. Nb3 {[%clk 0:01:06.7]}
26... Re8 {[%clk 0:02:25.6]} 27. Kf1 {[%clk 0:01:03.8]} 27... Re7 {[%clk
0:02:23.8]} 28. Re1 {[%clk 0:01:03.2]} 28... Rae8 {[%clk 0:02:20.6]} 29. Rxe7
{[%clk 0:01:02.3]} 29... Rxe7 {[%clk 0:02:21.5]} 30. Na5 {[%clk 0:00:59.7]}
30... Kf7 {[%clk 0:02:04.4]} 31. Nc6 {[%clk 0:00:56.9]} 31... Rc7 {[%clk
0:02:03.3]} 32. Ne2 {[%clk 0:00:56.4]} 32... Kf6 {[%clk 0:01:54.9]} 33. Rc2
{[%clk 0:00:53.8]} 33... b3 {[%clk 0:01:54.3]} 34. Rc3 {[%clk 0:00:34.7]} 34...
b2 {[%clk 0:01:53]} 35. Rb3 {[%clk 0:00:30.9]} 35... Nxc4 {[%clk 0:01:50.7]} 36.
Ke1 {[%clk 0:00:30.9]} 36... Be5 {[%clk 0:01:47.3]} 37. f4 {[%clk 0:00:27.2]}
37... Bd4 {[%clk 0:01:33.3]} 38. Nexd4 {[%clk 0:00:24.1]} 38... cxd4 {[%clk
0:01:33.3]} 39. Ke2 {[%clk 0:00:23.8]} 39... Nb6 {[%clk 0:01:08.4]} 40. Kd3
{[%clk 0:00:18.2]} 40... Nxd5 {[%clk 0:01:08.3]} 41. Nxd4 {[%clk 0:00:17.2]}
41... Rc3+ {[%clk 0:01:06.3]} 0-1

[Event "*** Titled Tuesday Blitz"]
[Site "Chess.com"]
[Date "2020.04.28"]
[Round "9"]
[White "otrov-11"]
[Black "Sadykov_Ramil"]
[Result "0-1"]
[WhiteElo "2376"]
[BlackElo "2516"]
[TimeControl "180+1"]
[EndTime "11:45:31 PDT"]
[Termination "Sadykov_Ramil won by resignation"]

1. Nf3 {[%clk 0:03:00.9]} 1... c5 {[%clk 0:02:58]} 2. c4 {[%clk 0:03:01]} 2...
Nc6 {[%clk 0:02:57.6]} 3. Nc3 {[%clk 0:03:00.8]} 3... e5 {[%clk 0:02:56.7]} 4.
e4 {[%clk 0:03:00.9]} 4... g6 {[%clk 0:02:53.6]} 5. g3 {[%clk 0:02:59.7]} 5...
Bg7 {[%clk 0:02:52.9]} 6. Bg2 {[%clk 0:03:00]} 6... d6 {[%clk 0:02:51.1]} 7. O-O
{[%clk 0:03:00.2]} 7... Nge7 {[%clk 0:02:48.3]} 8. d3 {[%clk 0:02:59.2]} 8...
O-O {[%clk 0:02:47.8]} 9. Be3 {[%clk 0:02:42.4]} 9... h6 {[%clk 0:02:44.4]} 10.
Qd2 {[%clk 0:02:41.4]} 10... Kh7 {[%clk 0:02:43.9]} 11. Nh4 {[%clk 0:02:37.3]}
11... g5 {[%clk 0:02:25.7]} 12. Nf3 {[%clk 0:02:17.3]} 12... f5 {[%clk
0:02:17.2]} 13. exf5 {[%clk 0:02:12.9]} 13... Bxf5 {[%clk 0:02:15.4]} 14. h4
{[%clk 0:02:07.5]} 14... g4 {[%clk 0:02:13.5]} 15. Nh2 {[%clk 0:02:07.5]} 15...
Qd7 {[%clk 0:02:08.9]} 16. Ne4 {[%clk 0:01:55.2]} 16... Nd4 {[%clk 0:02:04.4]}
17. Bxd4 {[%clk 0:01:50.5]} 17... exd4 {[%clk 0:01:58.7]} 18. Rae1 {[%clk
0:01:51.1]} 18... Nc6 {[%clk 0:01:58.3]} 19. f3 {[%clk 0:01:49.8]} 19... Ne5
{[%clk 0:01:41.5]} 20. fxg4 {[%clk 0:01:26.4]} 20... Bxg4 {[%clk 0:01:22.5]} 21.
Nxg4 {[%clk 0:01:04.4]} 21... Nxg4 {[%clk 0:01:21.2]} 22. Bh3 {[%clk 0:01:04.7]}
22... Be5 {[%clk 0:01:18.6]} 23. Qe2 {[%clk 0:00:53.2]} 23... Rg8 {[%clk
0:01:13.9]} 24. Rf3 {[%clk 0:00:32.8]} 24... Rg7 {[%clk 0:00:47.8]} 25. Ref1
{[%clk 0:00:19.1]} 25... Rag8 {[%clk 0:00:42.6]} 26. Bxg4 {[%clk 0:00:18.5]}
26... Qxg4 {[%clk 0:00:38.1]} 27. Rf7 {[%clk 0:00:09.3]} 27... Qxe2 {[%clk
0:00:33.3]} 0-1

[Event "*** Titled Tuesday Blitz"]
[Site "Chess.com"]
[Date "2020.04.28"]
[Round "9"]
[White "BasilSmash"]
[Black "picturesquecheck"]
[Result "1-0"]
[WhiteElo "2441"]
[BlackElo "2160"]
[TimeControl "180+1"]
[EndTime "11:45:36 PDT"]
[Termination "BasilSmash won by resignation"]

1. d4 {[%clk 0:02:57.4]} 1... Nf6 {[%clk 0:02:59.2]} 2. Nf3 {[%clk 0:02:57.4]}
2... d5 {[%clk 0:02:59]} 3. g3 {[%clk 0:02:57.6]} 3... g6 {[%clk 0:02:54.4]} 4.
Bg2 {[%clk 0:02:57.6]} 4... Bg7 {[%clk 0:02:55.3]} 5. O-O {[%clk 0:02:58.1]}
5... O-O {[%clk 0:02:55.9]} 6. c4 {[%clk 0:02:58.3]} 6... c6 {[%clk 0:02:55.7]}
7. b3 {[%clk 0:02:58.1]} 7... Re8 {[%clk 0:02:54.2]} 8. Bb2 {[%clk 0:02:57.6]}
8... b6 {[%clk 0:02:54.7]} 9. e3 {[%clk 0:02:51.4]} 9... Bg4 {[%clk 0:02:50.5]}
10. h3 {[%clk 0:02:48.8]} 10... Be6 {[%clk 0:02:47.8]} 11. Qe2 {[%clk
0:02:45.8]} 11... h6 {[%clk 0:02:45.1]} 12. Nc3 {[%clk 0:02:39.8]} 12... Qd7
{[%clk 0:02:43.9]} 13. Kh2 {[%clk 0:02:35]} 13... g5 {[%clk 0:02:32.7]} 14. Rac1
{[%clk 0:02:28.1]} 14... Qd6 {[%clk 0:02:16.9]} 15. Ne5 {[%clk 0:02:22.4]} 15...
Nbd7 {[%clk 0:02:14]} 16. f4 {[%clk 0:02:21.6]} 16... gxf4 {[%clk 0:01:31.8]}
17. exf4 {[%clk 0:02:22.5]} 17... Bf5 {[%clk 0:01:31.6]} 18. g4 {[%clk
0:02:16.6]} 18... Be4 {[%clk 0:01:21.9]} 19. Nxe4 {[%clk 0:02:13.8]} 19... Nxe4
{[%clk 0:01:19.5]} 20. Nxd7 {[%clk 0:02:09.5]} 20... Qxd7 {[%clk 0:01:16.3]} 21.
Bxe4 {[%clk 0:02:08.6]} 21... dxe4 {[%clk 0:01:15.6]} 22. Qxe4 {[%clk
0:02:09.5]} 22... c5 {[%clk 0:01:15.2]} 23. Rcd1 {[%clk 0:02:07.8]} 23... Qc7
{[%clk 0:01:05.7]} 24. Rd2 {[%clk 0:02:03]} 24... Rad8 {[%clk 0:00:54]} 25. Kg2
{[%clk 0:01:54]} 25... Rd7 {[%clk 0:00:52.3]} 26. Rfd1 {[%clk 0:01:52.6]} 26...
Red8 {[%clk 0:00:52.1]} 27. d5 {[%clk 0:01:52.5]} 27... Bxb2 {[%clk 0:00:48.1]}
28. Rxb2 {[%clk 0:01:53.4]} 28... e6 {[%clk 0:00:48.4]} 29. Rbd2 {[%clk
0:01:52.3]} 29... f5 {[%clk 0:00:34.2]} 30. Qxe6+ {[%clk 0:01:50.3]} 30... Rf7
{[%clk 0:00:34.1]} 31. d6 {[%clk 0:01:48.4]} 31... Qc6+ {[%clk 0:00:31.5]} 32.
Rd5 {[%clk 0:01:47.5]} 32... Re8 {[%clk 0:00:28.2]} 33. Qg6+ {[%clk 0:01:43.9]}
33... Rg7 {[%clk 0:00:18.6]} 34. Qxf5 {[%clk 0:01:41.9]} 34... Re2+ {[%clk
0:00:18.3]} 35. Kf3 {[%clk 0:01:41.1]} 35... Qe8 {[%clk 0:00:14.6]} 36. Qd3
{[%clk 0:01:30.6]} 36... Rxa2 {[%clk 0:00:09.9]} 37. d7 {[%clk 0:01:26.6]} 37...
Qd8 {[%clk 0:00:09.5]} 38. Re1 {[%clk 0:01:25.6]} 38... Qh4 {[%clk 0:00:07.7]}
39. d8=Q+ {[%clk 0:01:23.5]} 1-0

[Event "*** Titled Tuesday Blitz"]
[Site "Chess.com"]
[Date "2020.04.28"]
[Round "9"]
[White "troisi"]
[Black "EfM13"]
[Result "1-0"]
[WhiteElo "2174"]
[BlackElo "2231"]
[TimeControl "180+1"]
[EndTime "11:45:39 PDT"]
[Termination "troisi won on time"]

1. e4 {[%clk 0:02:58.9]} 1... g6 {[%clk 0:02:59.5]} 2. d4 {[%clk 0:02:58.6]}
2... Bg7 {[%clk 0:03:00.1]} 3. Nf3 {[%clk 0:02:59.5]} 3... d6 {[%clk 0:03:00.2]}
4. Nc3 {[%clk 0:02:59.8]} 4... Nf6 {[%clk 0:02:59.6]} 5. Bc4 {[%clk 0:02:59.8]}
5... O-O {[%clk 0:02:59.6]} 6. O-O {[%clk 0:02:59.9]} 6... c6 {[%clk 0:02:53.6]}
7. a4 {[%clk 0:02:58.7]} 7... Qc7 {[%clk 0:02:49.8]} 8. Re1 {[%clk 0:02:58]}
8... e5 {[%clk 0:02:48.6]} 9. h3 {[%clk 0:02:57.5]} 9... Nbd7 {[%clk 0:02:47.8]}
10. b3 {[%clk 0:02:57.4]} 10... Nb6 {[%clk 0:02:08.4]} 11. Bf1 {[%clk
0:02:44.3]} 11... a5 {[%clk 0:02:07.9]} 12. Ba3 {[%clk 0:02:44]} 12... Rd8
{[%clk 0:02:07]} 13. Qd2 {[%clk 0:02:43.8]} 13... Nh5 {[%clk 0:01:58.5]} 14.
Rad1 {[%clk 0:02:42.4]} 14... Bf6 {[%clk 0:01:08.4]} 15. dxe5 {[%clk 0:02:17.5]}
15... dxe5 {[%clk 0:01:07.1]} 16. Bd6 {[%clk 0:02:17.1]} 16... Qd7 {[%clk
0:01:01.8]} 17. Qe3 {[%clk 0:02:04]} 17... Qe6 {[%clk 0:00:21.3]} 18. Qxb6
{[%clk 0:01:46.4]} 18... Rxd6 {[%clk 0:00:20.9]} 19. Rxd6 {[%clk 0:01:46.1]}
19... Qxd6 {[%clk 0:00:21.4]} 20. Rd1 {[%clk 0:01:46.5]} 20... Qe7 {[%clk
0:00:20]} 21. g3 {[%clk 0:01:38]} 21... Be6 {[%clk 0:00:19.2]} 22. Kg2 {[%clk
0:01:22.4]} 22... Qb4 {[%clk 0:00:18.6]} 23. Qe3 {[%clk 0:01:17.7]} 23... Ng7
{[%clk 0:00:17.5]} 24. g4 {[%clk 0:01:15.6]} 24... Rd8 {[%clk 0:00:07.9]} 25. g5
{[%clk 0:01:13.7]} 25... Be7 {[%clk 0:00:07.3]} 26. h4 {[%clk 0:01:10]} 26...
Rxd1 {[%clk 0:00:07.1]} 27. Nxd1 {[%clk 0:01:10.9]} 27... Bc5 {[%clk 0:00:07.3]}
28. Qd3 {[%clk 0:01:06.9]} 28... Qb6 {[%clk 0:00:05.6]} 29. Qc3 {[%clk
0:00:59.6]} 29... Bd4 {[%clk 0:00:04.1]} 30. Qd2 {[%clk 0:00:57.5]} 30... Bc8
{[%clk 0:00:03.8]} 31. c3 {[%clk 0:00:57.5]} 31... Bc5 {[%clk 0:00:03.1]} 32.
Nxe5 {[%clk 0:00:57.7]} 32... Ne6 {[%clk 0:00:02.7]} 33. f4 {[%clk 0:00:51]}
33... Qxb3 {[%clk 0:00:02]} 34. f5 {[%clk 0:00:49.4]} 34... gxf5 {[%clk
0:00:02]} 35. exf5 {[%clk 0:00:50.3]} 1-0

[Event "*** Titled Tuesday Blitz"]
[Site "Chess.com"]
[Date "2020.04.28"]
[Round "9"]
[White "Ind1anStar"]
[Black "Gabrielian_Artur"]
[Result "1/2-1/2"]
[WhiteElo "2606"]
[BlackElo "2734"]
[TimeControl "180+1"]
[EndTime "11:45:41 PDT"]
[Termination "Game drawn by repetition"]

1. c4 {[%clk 0:03:00.9]} 1... Nf6 {[%clk 0:02:57.1]} 2. Nc3 {[%clk 0:02:59.5]}
2... g6 {[%clk 0:02:56.6]} 3. g3 {[%clk 0:02:58.3]} 3... Bg7 {[%clk 0:02:56.7]}
4. Bg2 {[%clk 0:02:58.9]} 4... O-O {[%clk 0:02:57.3]} 5. d3 {[%clk 0:02:58.3]}
5... d6 {[%clk 0:02:57.7]} 6. Nf3 {[%clk 0:02:58.5]} 6... e5 {[%clk 0:02:58]} 7.
O-O {[%clk 0:02:58.5]} 7... Nc6 {[%clk 0:02:57.4]} 8. Rb1 {[%clk 0:02:59]} 8...
a5 {[%clk 0:02:55.8]} 9. a3 {[%clk 0:02:59.5]} 9... Nd4 {[%clk 0:02:25.2]} 10.
e3 {[%clk 0:02:55.3]} 10... Nxf3+ {[%clk 0:02:19.5]} 11. Bxf3 {[%clk 0:02:56.2]}
11... c6 {[%clk 0:02:18.3]} 12. b4 {[%clk 0:02:55.1]} 12... axb4 {[%clk
0:02:18.6]} 13. axb4 {[%clk 0:02:56]} 13... d5 {[%clk 0:02:18.6]} 14. b5 {[%clk
0:02:51.2]} 14... Be6 {[%clk 0:02:12.9]} 15. bxc6 {[%clk 0:02:39.9]} 15... bxc6
{[%clk 0:02:13.1]} 16. cxd5 {[%clk 0:02:39.4]} 16... cxd5 {[%clk 0:02:14]} 17.
Bd2 {[%clk 0:02:39.4]} 17... Qd7 {[%clk 0:02:08.3]} 18. Qe2 {[%clk 0:02:36]}
18... Rfc8 {[%clk 0:02:03.9]} 19. Rfc1 {[%clk 0:02:35]} 19... h5 {[%clk
0:02:03.7]} 20. h4 {[%clk 0:02:17.3]} 20... Bg4 {[%clk 0:01:59.7]} 21. Bxg4
{[%clk 0:02:15]} 21... hxg4 {[%clk 0:01:52.7]} 22. Ra1 {[%clk 0:02:02.1]} 22...
Rxa1 {[%clk 0:01:50.4]} 23. Rxa1 {[%clk 0:02:02]} 23... e4 {[%clk 0:01:46]} 24.
d4 {[%clk 0:02:00.3]} 24... Bf8 {[%clk 0:01:37.2]} 25. Qa6 {[%clk 0:01:53.2]}
25... Kg7 {[%clk 0:01:31.1]} 26. Qe2 {[%clk 0:01:23.8]} 26... Rc4 {[%clk
0:01:14.5]} 27. Ra6 {[%clk 0:01:19.9]} 27... Qc8 {[%clk 0:01:05]} 28. Rxf6
{[%clk 0:01:13.8]} 28... Rxc3 {[%clk 0:00:47.9]} 29. Bxc3 {[%clk 0:01:07.8]}
29... Kxf6 {[%clk 0:00:47.8]} 30. Qb2 {[%clk 0:01:02]} 30... Kg7 {[%clk
0:00:45.4]} 31. Bb4 {[%clk 0:01:01]} 31... Bxb4 {[%clk 0:00:27.3]} 32. Qxb4
{[%clk 0:01:01.9]} 32... Qc1+ {[%clk 0:00:26.3]} 33. Kg2 {[%clk 0:01:02.4]}
33... Qd1 {[%clk 0:00:24]} 34. Qd6 {[%clk 0:01:00.3]} 34... Qf3+ {[%clk
0:00:24]} 35. Kg1 {[%clk 0:01:00.1]} 35... Qd1+ {[%clk 0:00:23.9]} 36. Kh2
{[%clk 0:00:59.7]} 36... Qf3 {[%clk 0:00:17]} 37. Kg1 {[%clk 0:00:59.7]} 37...
Qd1+ {[%clk 0:00:17]} 38. Kh2 {[%clk 0:00:57.2]} 38... Qf3 {[%clk 0:00:17]} 39.
Kg1 {[%clk 0:00:51.3]} 1/2-1/2

[Event "*** Titled Tuesday Blitz"]
[Site "Chess.com"]
[Date "2020.04.28"]
[Round "9"]
[White "MoreChessJulia"]
[Black "Colombiano07"]
[Result "1-0"]
[WhiteElo "1799"]
[BlackElo "2195"]
[TimeControl "180+1"]
[EndTime "11:45:41 PDT"]
[Termination "MoreChessJulia won by resignation"]

1. d4 {[%clk 0:02:59.4]} 1... d5 {[%clk 0:02:59.4]} 2. c4 {[%clk 0:02:58]} 2...
Bf5 {[%clk 0:02:58.9]} 3. Nc3 {[%clk 0:02:56.5]} 3... e6 {[%clk 0:02:58.9]} 4.
Bf4 {[%clk 0:02:54]} 4... Nc6 {[%clk 0:02:58.6]} 5. e3 {[%clk 0:02:53.5]} 5...
Nf6 {[%clk 0:02:58.3]} 6. a3 {[%clk 0:02:52.2]} 6... Bd6 {[%clk 0:02:57.1]} 7.
Bxd6 {[%clk 0:02:50.7]} 7... Qxd6 {[%clk 0:02:58]} 8. c5 {[%clk 0:02:50.6]} 8...
Qe7 {[%clk 0:02:57.8]} 9. f4 {[%clk 0:02:50.7]} 9... a5 {[%clk 0:02:55.8]} 10.
Nf3 {[%clk 0:02:50.4]} 10... O-O {[%clk 0:02:55.6]} 11. Bd3 {[%clk 0:02:48.2]}
11... Ng4 {[%clk 0:02:51.8]} 12. Qe2 {[%clk 0:02:43.6]} 12... b6 {[%clk
0:02:43.5]} 13. Bb5 {[%clk 0:02:37.2]} 13... Na7 {[%clk 0:02:35.2]} 14. cxb6
{[%clk 0:02:23.3]} 14... cxb6 {[%clk 0:02:33.1]} 15. O-O {[%clk 0:02:22.3]}
15... Rac8 {[%clk 0:02:21.8]} 16. Bd3 {[%clk 0:02:20.9]} 16... Bxd3 {[%clk
0:02:18.2]} 17. Qxd3 {[%clk 0:02:20.5]} 17... f5 {[%clk 0:02:17.7]} 18. h3
{[%clk 0:02:19.1]} 18... Nf6 {[%clk 0:02:17.3]} 19. Ne5 {[%clk 0:02:17.9]} 19...
Nc6 {[%clk 0:02:16.6]} 20. Rfc1 {[%clk 0:02:15.2]} 20... Nxe5 {[%clk 0:02:13.4]}
21. dxe5 {[%clk 0:02:12.7]} 21... Ne4 {[%clk 0:02:13.4]} 22. Nxe4 {[%clk
0:02:10.1]} 22... fxe4 {[%clk 0:02:11.9]} 23. Qd4 {[%clk 0:02:09]} 23... Rc5
{[%clk 0:01:55.6]} 24. b4 {[%clk 0:02:06.5]} 24... axb4 {[%clk 0:01:56.5]} 25.
axb4 {[%clk 0:02:05.7]} 25... Rb5 {[%clk 0:01:32.8]} 26. Rab1 {[%clk 0:02:02.5]}
26... Ra8 {[%clk 0:01:31.3]} 27. Rc6 {[%clk 0:02:00.7]} 27... Ra6 {[%clk
0:01:05.1]} 28. g4 {[%clk 0:01:57.5]} 28... h5 {[%clk 0:01:03.4]} 29. f5 {[%clk
0:01:56.7]} 29... exf5 {[%clk 0:01:00]} 30. gxf5 {[%clk 0:01:54.3]} 30... Qg5+
{[%clk 0:00:59.7]} 31. Kh2 {[%clk 0:01:52.9]} 31... Qxf5 {[%clk 0:00:55]} 32.
Rb2 {[%clk 0:01:40.4]} 32... h4 {[%clk 0:00:45.6]} 33. e6 {[%clk 0:01:35.1]}
33... Qg5 {[%clk 0:00:35]} 34. Rg2 {[%clk 0:01:33.2]} 34... Qe7 {[%clk
0:00:24.1]} 35. Rc8+ {[%clk 0:01:09.2]} 35... Kh7 {[%clk 0:00:23.9]} 36. Qe5
{[%clk 0:01:06.6]} 36... Qf6 {[%clk 0:00:07.2]} 37. Qxf6 {[%clk 0:01:04.7]}
37... gxf6 {[%clk 0:00:07]} 38. e7 {[%clk 0:01:04.9]} 1-0

[Event "*** Titled Tuesday Blitz"]
[Site "Chess.com"]
[Date "2020.04.28"]
[Round "9"]
[White "jlandaw"]
[Black "tan275"]
[Result "1-0"]
[WhiteElo "2394"]
[BlackElo "2194"]
[TimeControl "180+1"]
[EndTime "11:45:42 PDT"]
[Termination "jlandaw won by resignation"]

1. e4 {[%clk 0:03:00.9]} 1... c6 {[%clk 0:02:59.8]} 2. d4 {[%clk 0:03:00.3]}
2... d5 {[%clk 0:03:00.3]} 3. exd5 {[%clk 0:02:57]} 3... cxd5 {[%clk 0:03:00]}
4. Bd3 {[%clk 0:02:56.7]} 4... Nc6 {[%clk 0:03:00.3]} 5. c3 {[%clk 0:02:56.9]}
5... Qc7 {[%clk 0:03:00.5]} 6. Ne2 {[%clk 0:02:40.6]} 6... e5 {[%clk 0:02:56.4]}
7. dxe5 {[%clk 0:02:40.5]} 7... Nxe5 {[%clk 0:02:56.2]} 8. Bb5+ {[%clk
0:02:40.2]} 8... Bd7 {[%clk 0:02:52.3]} 9. Qxd5 {[%clk 0:02:36.2]} 9... O-O-O
{[%clk 0:02:50.1]} 10. Bf4 {[%clk 0:02:14.1]} 10... f6 {[%clk 0:02:33.6]} 11.
O-O {[%clk 0:01:42.6]} 11... Bg4 {[%clk 0:01:55.8]} 12. Qe4 {[%clk 0:01:28.8]}
12... Nh6 {[%clk 0:01:43.1]} 13. Nd4 {[%clk 0:01:05.4]} 13... Bd6 {[%clk
0:01:37]} 14. h3 {[%clk 0:00:48]} 14... f5 {[%clk 0:01:27]} 15. Qe3 {[%clk
0:00:40.5]} 15... Bh5 {[%clk 0:01:15.3]} 16. Ne6 {[%clk 0:00:37.1]} 16... Nf3+
{[%clk 0:00:54.3]} 17. gxf3 {[%clk 0:00:35.4]} 17... Bxf4 {[%clk 0:00:54.3]} 18.
Qxf4 {[%clk 0:00:35.1]} 18... Qxf4 {[%clk 0:00:52.3]} 19. Nxf4 {[%clk 0:00:36]}
19... Bxf3 {[%clk 0:00:52.3]} 20. Na3 {[%clk 0:00:34.2]} 20... g5 {[%clk
0:00:52.1]} 21. Ne6 {[%clk 0:00:34.1]} 21... Rd6 {[%clk 0:00:44]} 22. Nd4 {[%clk
0:00:34.2]} 22... Be4 {[%clk 0:00:38.7]} 23. Nc4 {[%clk 0:00:33.5]} 23... Rd5
{[%clk 0:00:36.7]} 24. Ne3 {[%clk 0:00:29]} 24... Rdd8 {[%clk 0:00:33.5]} 25.
Ba4 {[%clk 0:00:28.5]} 25... g4 {[%clk 0:00:25.2]} 26. hxg4 {[%clk 0:00:27.9]}
26... Nxg4 {[%clk 0:00:22.7]} 27. Nxg4 {[%clk 0:00:27]} 27... fxg4 {[%clk
0:00:23.6]} 28. Bb3 {[%clk 0:00:22.4]} 28... h5 {[%clk 0:00:22.9]} 29. Rfe1
{[%clk 0:00:22.7]} 29... Bf3 {[%clk 0:00:16.8]} 30. Nxf3 {[%clk 0:00:21.4]}
30... gxf3 {[%clk 0:00:17.7]} 31. Re3 {[%clk 0:00:21.9]} 31... Rhg8+ {[%clk
0:00:17.1]} 32. Bxg8 {[%clk 0:00:21.4]} 32... Rxg8+ {[%clk 0:00:16.4]} 33. Kh1
{[%clk 0:00:21.9]} 1-0

[Event "*** Titled Tuesday Blitz"]
[Site "Chess.com"]
[Date "2020.04.28"]
[Round "9"]
[White "calin_dragomirescu"]
[Black "Kate1606"]
[Result "0-1"]
[WhiteElo "2229"]
[BlackElo "2040"]
[TimeControl "180+1"]
[EndTime "11:45:42 PDT"]
[Termination "Kate1606 won by resignation"]

1. Nf3 {[%clk 0:03:00.9]} 1... c5 {[%clk 0:02:58.6]} 2. c4 {[%clk 0:03:00.4]}
2... Nc6 {[%clk 0:02:58.4]} 3. e3 {[%clk 0:03:00.5]} 3... g6 {[%clk 0:02:49.4]}
4. d4 {[%clk 0:03:00.1]} 4... cxd4 {[%clk 0:02:48.1]} 5. exd4 {[%clk 0:03:00.6]}
5... d5 {[%clk 0:02:43]} 6. Nc3 {[%clk 0:02:59.1]} 6... Nf6 {[%clk 0:02:38.5]}
7. cxd5 {[%clk 0:02:58.6]} 7... Nxd5 {[%clk 0:02:36.7]} 8. Bc4 {[%clk
0:02:59.1]} 8... Nb6 {[%clk 0:02:35.1]} 9. Bb3 {[%clk 0:02:52.1]} 9... Na5
{[%clk 0:02:29.1]} 10. Bxf7+ {[%clk 0:02:47.3]} 10... Kxf7 {[%clk 0:02:25.5]}
11. Ng5+ {[%clk 0:02:43]} 11... Kg7 {[%clk 0:02:17.9]} 12. Qf3 {[%clk
0:02:38.5]} 12... Bf5 {[%clk 0:02:04.8]} 13. g4 {[%clk 0:02:34.5]} 13... h6
{[%clk 0:02:03]} 14. gxf5 {[%clk 0:02:30]} 14... hxg5 {[%clk 0:02:01.6]} 15.
fxg6 {[%clk 0:02:30.3]} 15... Qe8 {[%clk 0:01:15.9]} 16. Bxg5 {[%clk 0:02:28.8]}
16... Qxg6 {[%clk 0:01:01.5]} 17. Rg1 {[%clk 0:02:23.1]} 17... Qh5 {[%clk
0:00:09.6]} 18. Qxh5 {[%clk 0:02:05.3]} 18... Rxh5 {[%clk 0:00:09.2]} 19. h4
{[%clk 0:02:04.5]} 19... Kf7 {[%clk 0:00:07.3]} 20. O-O-O {[%clk 0:02:04.3]}
20... Bh6 {[%clk 0:00:05.4]} 21. f4 {[%clk 0:02:02.3]} 21... Bxg5 {[%clk
0:00:04.6]} 22. hxg5 {[%clk 0:02:02.6]} 22... Nac4 {[%clk 0:00:02.6]} 23. g6+
{[%clk 0:02:02.2]} 23... Kg7 {[%clk 0:00:02.6]} 24. Ne4 {[%clk 0:02:00.4]} 24...
Rah8 {[%clk 0:00:02.5]} 25. Ng5 {[%clk 0:01:59.8]} 25... Ne3 {[%clk 0:00:02.9]}
26. Rde1 {[%clk 0:01:57.8]} 26... Rc8+ {[%clk 0:00:03.5]} 27. Kb1 {[%clk
0:01:57.1]} 27... Ned5 {[%clk 0:00:03.9]} 28. Ne6+ {[%clk 0:01:56]} 28... Kg8
{[%clk 0:00:04.5]} 29. Nc5 {[%clk 0:01:55.2]} 29... Nc4 {[%clk 0:00:04.5]} 30.
b3 {[%clk 0:01:47.7]} 30... Nce3 {[%clk 0:00:04.9]} 31. Re2 {[%clk 0:01:47.4]}
31... b6 {[%clk 0:00:05.3]} 32. Nd3 {[%clk 0:01:43.5]} 32... Nc3+ {[%clk
0:00:05.6]} 33. Kb2 {[%clk 0:01:42.3]} 33... Nxe2 {[%clk 0:00:06.5]} 34. Re1
{[%clk 0:01:41.5]} 34... Rh2 {[%clk 0:00:06.4]} 35. Ka3 {[%clk 0:01:40.5]} 35...
Rc2 {[%clk 0:00:05.2]} 36. Nb4 {[%clk 0:01:39.3]} 36... Rd2 {[%clk 0:00:03.3]}
37. Ka4 {[%clk 0:01:39.4]} 37... Nf5 {[%clk 0:00:02.9]} 38. Kb5 {[%clk
0:01:38.8]} 38... Nc3+ {[%clk 0:00:03]} 39. Ka6 {[%clk 0:01:38.5]} 39... Rde2
{[%clk 0:00:03.4]} 40. Rc1 {[%clk 0:01:35.3]} 40... Ne4 {[%clk 0:00:02.5]} 41.
Rc7 {[%clk 0:01:33.8]} 41... Kg7 {[%clk 0:00:03.1]} 42. Rxa7 {[%clk 0:01:33.3]}
42... Kxg6 {[%clk 0:00:03.7]} 43. Kxb6 {[%clk 0:01:34.2]} 43... Ned6 {[%clk
0:00:03.3]} 44. a3 {[%clk 0:01:32.9]} 44... Ne4 {[%clk 0:00:02.5]} 45. Ra6
{[%clk 0:01:31.3]} 45... Nxd4 {[%clk 0:00:02.9]} 46. Kb7+ {[%clk 0:01:32.2]}
46... Kf5 {[%clk 0:00:03.6]} 47. Nc6 {[%clk 0:01:31.6]} 47... Nc5+ {[%clk
0:00:03.8]} 48. Kb6 {[%clk 0:01:31.2]} 48... Nxa6 {[%clk 0:00:04.7]} 49. Kxa6
{[%clk 0:01:32]} 49... Nxc6 {[%clk 0:00:04.9]} 50. Kb6 {[%clk 0:01:32.3]} 50...
Nd4 {[%clk 0:00:05.3]} 51. a4 {[%clk 0:01:33.2]} 51... Kxf4 {[%clk 0:00:06]} 52.
a5 {[%clk 0:01:33.1]} 52... Rb2 {[%clk 0:00:06]} 53. a6 {[%clk 0:01:34]} 53...
Rxb3+ {[%clk 0:00:06.6]} 54. Kc5 {[%clk 0:01:34]} 54... Ra3 {[%clk 0:00:07.1]}
55. a7 {[%clk 0:01:34.9]} 55... Rxa7 {[%clk 0:00:07.4]} 56. Kxd4 {[%clk
0:01:35.7]} 56... Rd7+ {[%clk 0:00:07.5]} 0-1